bitfinex/quotes_BTCUSD_20240818
["timestamp","ask_amount","ask_price","bid_price","bid_amount"]
[1724012163944,0.50515763,59856.0,59855.0,0.8790265]
[1724012164162,0.50515763,59856.0,59855.0,0.80395362]
[1724012164365,0.50515763,59856.0,59855.0,0.8790265]
[1724012165508,0.50515763,59856.0,59855.0,1.24977632]
[1724012165849,0.50515763,59856.0,59855.0,1.14346312]
[1724012167503,0.50515763,59856.0,59855.0,1.14347608]
[1724012168314,0.50515763,59856.0,59855.0,0.77272552]
[1724012168511,0.50515763,59856.0,59855.0,1.14347648]
[1724012169116,0.50515763,59856.0,59855.0,1.14347883]
[1724012169649,0.50515763,59856.0,59855.0,1.14347827]
[1724012169890,0.50515763,59856.0,59855.0,0.77272413]
[1724012170426,0.50515763,59856.0,59855.0,1.14348499]
[1724012170827,0.50515763,59856.0,59855.0,0.69763986]
[1724012171028,0.50515763,59856.0,59855.0,0.77273614]
[1724012171254,0.50515763,59856.0,59855.0,0.69763986]
[1724012171457,0.50515763,59856.0,59855.0,1.06840149]
[1724012171779,0.50515763,59856.0,59855.0,1.20388028]
[1724012172079,0.502035,59856.0,59855.0,1.20388028]
[1724012172282,0.50515389,59856.0,59855.0,1.20388028]
[1724012172511,0.50515389,59856.0,59855.0,1.30281835]
[1724012172717,0.50515389,59856.0,59855.0,1.53691042]
[1724012172919,0.50515389,59856.0,59855.0,1.66205226]
[1724012173656,0.50515389,59856.0,59855.0,1.60769105]
[1724012173885,0.50515389,59856.0,59855.0,1.66204807]
[1724012174680,0.50515389,59856.0,59855.0,1.66087267]
[1724012175533,0.50515389,59856.0,59855.0,1.66204807]
[1724012176013,0.5051539,59856.0,59855.0,1.66204807]
[1724012176653,0.5051539,59856.0,59855.0,1.66087267]
[1724012176852,0.5051539,59856.0,59855.0,1.66195356]
[1724012178127,0.5051539,59856.0,59855.0,1.66286106]
[1724012179351,0.5051539,59856.0,59855.0,1.53775917]
[1724012179557,0.5051539,59856.0,59855.0,1.52694372]
[1724012179757,0.5051539,59856.0,59855.0,1.52576832]
[1724012180457,0.5051539,59856.0,59855.0,1.40069809]
[1724012181381,0.5051539,59856.0,59855.0,1.36678697]
[1724012181761,0.5051539,59856.0,59855.0,1.34754814]
[1724012181963,0.5051539,59856.0,59855.0,1.36678672]
[1724012182368,0.5051539,59856.0,59855.0,1.40069743]
[1724012183602,0.5051539,59856.0,59855.0,1.52576272]
[1724012184841,0.5051539,59856.0,59855.0,1.52693812]
[1724012185043,0.5051539,59856.0,59855.0,1.29304012]
[1724012185595,0.5051539,59856.0,59855.0,1.13406412]
[1724012185804,0.5051539,59856.0,59855.0,1.168927]
[1724012186233,0.50203501,59856.0,59855.0,0.856929]
[1724012186426,0.50203501,59856.0,59855.0,0.08532114]
[1724012186427,0.56683501,59856.0,59855.0,0.08532114]
[1724012186628,0.56995558,59856.0,59855.0,0.08532114]
[1724012186868,0.56995558,59856.0,59855.0,0.03528038]
[1724012188992,0.92079658,59856.0,59855.0,0.03528038]
[1724012189215,0.92079658,59856.0,59855.0,0.03528665]
[1724012189430,0.92079658,59856.0,59855.0,0.0148664]
[1724012192519,1.15469058,59856.0,59855.0,0.0148664]
[1724012193241,1.23769058,59856.0,59855.0,0.0148664]
[1724012197211,1.00379658,59856.0,59855.0,0.0148664]
[1724012202062,1.67663504,59856.0,59855.0,0.0148664]
[1724012202446,1.57578458,59856.0,59855.0,0.0148664]
[1724012203082,1.57578458,59856.0,59855.0,0.0088664]
[1724012203285,1.57578458,59856.0,59855.0,0.0098664]
[1724012203629,1.57578458,59856.0,59855.0,0.0088664]
[1724012203944,1.57578458,59856.0,59855.0,0.0020829]
[1724012204526,1.57578458,59856.0,59855.0,0.0050829]
[1724012204962,1.57578458,59856.0,59855.0,0.0020829]
[1724012205279,1.49458458,59856.0,59855.0,0.0040829]
[1724012210272,1.57578458,59856.0,59855.0,0.0040829]
[1724012212123,1.58568488,59856.0,59855.0,0.0040829]
[1724012214510,1.57578458,59856.0,59855.0,0.0040829]
[1724012218387,1.49458458,59856.0,59855.0,0.0040829]
[1724012221180,1.41158458,59856.0,59855.0,0.0040829]
[1724012226207,1.49108458,59856.0,59855.0,0.0040829]
[1724012226618,1.49108458,59856.0,59855.0,0.0029075]
[1724012226619,1.65487342,59856.0,59855.0,0.0029075]
[1724012227022,1.88976742,59856.0,59855.0,0.0029075]
[1724012227430,1.89076742,59856.0,59855.0,0.0029075]
[1724012227959,1.88976742,59856.0,59855.0,0.0009075]
[1724012228370,1.89276742,59856.0,59855.0,0.0019075]
[1724012229617,1.89276742,59856.0,59855.0,0.0029075]
[1724012229618,1.89576742,59856.0,59855.0,0.0029075]
[1724012230495,2.06732196,59856.0,59855.0,0.0029075]
[1724012232397,2.11744155,59856.0,59855.0,0.0029075]
[1724012233500,2.06732196,59856.0,59855.0,0.0029075]
[1724012235077,1.97696742,59856.0,59855.0,0.0029075]
[1724012242141,1.97979202,59856.0,59855.0,0.0029075]
[1724012242346,1.97696742,59856.0,59855.0,0.0029075]
[1724012242545,2.02992678,59856.0,59855.0,0.0029075]
[1724012242888,2.02692678,59856.0,59855.0,0.0019075]
[1724012243096,2.14552196,59856.0,59855.0,0.0019075]
[1724012243288,2.14552196,59856.0,59855.0,0.0029075]
[1724012243289,2.05217033,59856.0,59855.0,0.0029075]
[1724012243491,1.97696742,59856.0,59855.0,0.0029075]
[1724012244410,1.97396742,59856.0,59855.0,0.0019075]
[1724012244817,1.98296742,59856.0,59855.0,0.0029075]
[1724012245593,1.90076742,59856.0,59855.0,0.0029075]
[1724012245798,1.90176742,59856.0,59855.0,0.0029075]
[1724012245993,1.98296742,59856.0,59855.0,0.0029075]
[1724012251985,1.98496742,59856.0,59855.0,0.0029075]
[1724012252148,2.03510625,59856.0,59855.0,0.0029075]
[1724012252750,2.03593085,59856.0,59855.0,0.0029075]
[1724012252951,2.03510625,59856.0,59855.0,0.0029075]
[1724012253357,2.03593085,59856.0,59855.0,0.0029075]
[1724012253682,2.20748539,59856.0,59855.0,0.0029075]
[1724012253988,2.20748671,59856.0,59855.0,0.0029075]
[1724012254199,2.20466211,59856.0,59855.0,0.0029075]
[1724012258503,2.15452196,59856.0,59855.0,0.0029075]
[1724012258667,2.15734656,59856.0,59855.0,0.0029075]
[1724012260806,1.98296742,59856.0,59855.0,0.0029075]
[1724012261187,1.98496742,59856.0,59855.0,0.0029075]
[1724012261527,2.03511634,59856.0,59855.0,0.0029075]
[1724012261731,2.03594094,59856.0,59855.0,0.0029075]
[1724012261987,1.98579202,59856.0,59855.0,0.0029075]
[1724012262887,1.98496742,59856.0,59855.0,0.0029075]
[1724012263506,2.03511799,59856.0,59855.0,0.0029075]
[1724012263930,1.98496742,59856.0,59855.0,0.0029075]
[1724012264352,1.98296742,59856.0,59855.0,0.0029075]
[1724012264557,1.95361799,59856.0,59855.0,0.0029075]
[1724012265170,1.80661799,59856.0,59855.0,0.0029075]
[1724012265384,1.60377342,59856.0,59855.0,0.0852075]
[1724012269851,1.60377342,59856.0,59855.0,0.0848065]
[1724012273873,1.65393734,59856.0,59855.0,0.0848065]
[1724012274788,1.60377342,59856.0,59855.0,0.0848065]
[1724012274989,1.6790193,59856.0,59855.0,0.0848065]
[1724012276602,1.6790193,59856.0,59855.0,0.0025065]
[1724012276972,1.67905955,59856.0,59855.0,0.0025065]
[1724012278752,1.60377342,59856.0,59855.0,0.0025065]
[1724012279410,1.60477342,59856.0,59855.0,0.0025065]
[1724012279614,1.98386742,59856.0,59855.0,0.0025065]
[1724012279998,2.25480347,59856.0,59855.0,0.0025065]
[1724012280987,2.25580413,59856.0,59855.0,0.0025065]
[1724012281508,2.2548038,59856.0,59855.0,0.0025065]
[1724012282664,2.25580509,59856.0,59855.0,0.0025065]
[1724012282839,1.90436742,59856.0,59855.0,0.0025065]
[1724012283064,1.90536742,59856.0,59855.0,0.0025065]
[1724012283270,1.98065343,59856.0,59855.0,0.0025065]
[1724012283473,1.91395343,59856.0,59855.0,0.0025065]
[1724012283707,1.83866742,59856.0,59855.0,0.0025065]
[1724012283908,1.60377342,59856.0,59855.0,0.0025065]
[1724012284679,1.60377342,59856.0,59855.0,0.0853065]
[1724012286450,1.60377342,59856.0,59855.0,0.16346715]
[1724012286451,1.26567942,59856.0,59855.0,0.16346715]
[1724012286658,1.26567942,59856.0,59855.0,0.1486065]
[1724012287444,1.25667942,59856.0,59855.0,0.1476065]
[1724012287645,1.26567942,59856.0,59855.0,0.1486065]
[1724012288005,1.28867942,59856.0,59855.0,0.1486065]
[1724012288208,1.21589058,59856.0,59855.0,0.1476065]
[1724012288417,1.21589058,59856.0,59855.0,0.1487819]
[1724012289330,1.27967752,59856.0,59855.0,0.1487819]
[1724012289540,1.21289058,59856.0,59855.0,0.1477819]
[1724012289739,1.21389058,59856.0,59855.0,0.1477819]
[1724012290311,1.21389058,59856.0,59855.0,0.1466065]
[1724012290915,1.21489058,59856.0,59855.0,0.1466065]
[1724012291300,1.21389058,59856.0,59855.0,0.1466065]
[1724012292440,1.21389058,59856.0,59855.0,0.1477819]
[1724012292843,1.21389058,59856.0,59855.0,0.1466065]
[1724012294751,1.21389058,59856.0,59855.0,0.1477819]
[1724012297105,1.11389058,59856.0,59855.0,0.1477819]
[1724012301281,1.11389058,59856.0,59855.0,0.14743776]
[1724012310540,1.11389058,59856.0,59855.0,0.16218154]
[1724012310541,0.52915558,59856.0,59855.0,0.16218154]
[1724012310745,0.64610258,59856.0,59855.0,0.16218154]
[1724012310946,1.11389058,59856.0,59855.0,0.14743776]
[1724012312156,1.11289058,59856.0,59855.0,0.14743776]
[1724012312569,1.11289058,59856.0,59855.0,0.14943776]
[1724012312777,1.11289058,59856.0,59855.0,0.14937516]
[1724012313832,1.11289058,59856.0,59855.0,0.15237516]
[1724012316173,0.87899658,59856.0,59855.0,0.15237516]
[1724012326664,0.87899658,59856.0,59855.0,0.17281255]
[1724012326953,0.87899658,59856.0,59855.0,0.17281265]
[1724012331269,0.87899658,59856.0,59855.0,0.17281205]
[1724012335444,0.87399658,59856.0,59855.0,0.18635333]
[1724012335644,0.87399658,59856.0,59855.0,0.20679048]
[1724012335996,0.87399658,59856.0,59855.0,0.18635333]
[1724012336183,0.87399658,59856.0,59855.0,0.2067905]
[1724012337319,0.87399658,59856.0,59855.0,0.20679062]
[1724012338276,0.87399658,59856.0,59855.0,0.14349062]
[1724012338471,0.87399658,59856.0,59855.0,0.12305333]
[1724012338746,0.87399658,59856.0,59855.0,0.08907516]
[1724012338944,0.87399658,59856.0,59855.0,0.10951263]
[1724012341047,0.87482158,59856.0,59855.0,0.10951263]
[1724012342444,0.87482158,59856.0,59855.0,0.1095125]
[1724012344077,0.87482158,59856.0,59855.0,0.0267125]
[1724012345792,0.87482158,59856.0,59855.0,0.0255371]
[1724012346731,0.88469901,59856.0,59855.0,0.0255371]
[1724012347133,0.88469901,59856.0,59855.0,0.02553588]
[1724012347452,0.88469901,59856.0,59855.0,0.00509976]
[1724012347602,0.88469901,59856.0,59855.0,0.02553588]
[1724012347843,0.87482158,59856.0,59855.0,0.02553588]
[1724012348004,0.87482158,59856.0,59855.0,0.10103588]
[1724012348213,0.87482158,59856.0,59855.0,0.10221128]
[1724012351254,0.87482158,59856.0,59855.0,0.10221172]
[1724012358596,0.87482158,59856.0,59855.0,0.12496337]
[1724012359189,0.87482158,59856.0,59855.0,0.10221172]
[1724012360452,0.87482158,59856.0,59855.0,0.08177516]
[1724012360662,0.87482158,59856.0,59855.0,0.10221184]
[1724012361032,1.10871558,59856.0,59855.0,0.02553644]
[1724012361255,1.25191558,59856.0,59855.0,0.02553644]
[1724012361607,1.17131558,59856.0,59855.0,0.02553752]
[1724012363494,1.17131558,59856.0,59855.0,0.02513652]
[1724012364860,1.17131558,59856.0,59855.0,0.00469876]
[1724012365060,1.17131558,59856.0,59855.0,0.02604349]
[1724012366012,1.10871558,59856.0,59855.0,0.02604349]
[1724012366590,1.10559501,59856.0,59855.0,0.02604349]
[1724012366794,1.10848631,59856.0,59855.0,0.02604349]
[1724012367551,1.10848631,59856.0,59855.0,0.00560626]
[1724012367744,1.10848631,59856.0,59855.0,0.02604452]
[1724012368308,1.10848631,59856.0,59855.0,0.00560626]
[1724012368915,1.10848631,59856.0,59855.0,0.02604394]
[1724012369124,1.10848631,59856.0,59855.0,0.00560626]
[1724012370336,1.10848631,59856.0,59855.0,0.00678166]
[1724012371168,1.10848631,59856.0,59855.0,0.00560626]
[1724012371372,1.17227375,59856.0,59855.0,0.00560626]
[1724012371579,1.10848631,59856.0,59855.0,0.00560626]
[1724012375245,1.34238031,59856.0,59855.0,0.00560626]
[1724012375884,1.34238031,59856.0,59855.0,0.00526336]
[1724012379174,1.34238031,59856.0,59855.0,0.00343876]
[1724012379383,1.34238031,59856.0,59855.0,0.0020829]
[1724012379910,1.34238031,59856.0,59855.0,0.0019075]
[1724012380151,1.34238031,59856.0,59855.0,0.0009075]
[1724012380846,1.34338031,59856.0,59855.0,0.0009075]
[1724012381084,1.55056935,59856.0,59855.0,0.0009075]
[1724012381279,1.70077093,59856.0,59855.0,0.0009075]
[1724012381482,1.72587172,59856.0,59855.0,0.0009075]
[1724012382090,1.72487172,59856.0,59855.0,0.0009075]
[1724012382248,1.72487172,59856.0,59855.0,0.0019075]
[1724012382249,1.71374678,59856.0,59855.0,0.0019075]
[1724012382405,1.66356935,59856.0,59855.0,0.0019075]
[1724012382606,1.73587172,59856.0,59855.0,0.0009075]
[1724012382814,1.66056935,59856.0,59855.0,0.0009075]
[1724012383013,1.66856935,59856.0,59855.0,0.0019075]
[1724012383357,1.71873627,59856.0,59855.0,0.0019075]
[1724012383532,2.12418481,59856.0,59855.0,0.0019075]
[1724012384342,1.90346335,59856.0,59855.0,0.0019075]
[1724012384544,1.90446335,59856.0,59855.0,0.0019075]
[1724012384877,1.98176572,59856.0,59855.0,0.0019075]
[1724012385027,1.98876572,59856.0,59855.0,0.0029075]
[1724012385384,1.89246335,59856.0,59855.0,0.0019075]
[1724012385705,1.9426121,59856.0,59855.0,0.0019075]
[1724012385900,1.9426121,59856.0,59855.0,0.0029075]
[1724012386133,1.9526121,59856.0,59855.0,0.0029075]
[1724012387125,1.90246335,59856.0,59855.0,0.0029075]
[1724012388328,1.9526121,59856.0,59855.0,0.0029075]
[1724012388851,1.90246335,59856.0,59855.0,0.0029075]
[1724012394262,1.90146335,59856.0,59855.0,0.0029075]
[1724012394413,1.75806335,59856.0,59855.0,0.0029075]
[1724012397911,1.69427431,59856.0,59855.0,0.0029075]
[1724012398700,1.75805649,59856.0,59855.0,0.0029075]
[1724012403777,1.75699808,59856.0,59855.0,0.0029075]
[1724012405011,1.81869808,59856.0,59855.0,0.0029075]
[1724012412633,2.01969808,59856.0,59855.0,0.0029075]
[1724012413083,2.09549808,59856.0,59855.0,0.0029075]
[1724012416285,2.14561288,59856.0,59855.0,0.0029075]
[1724012416884,2.09549808,59856.0,59855.0,0.0029075]
[1724012417291,2.14561288,59856.0,59855.0,0.0029075]
[1724012417507,2.09549808,59856.0,59855.0,0.0029075]
[1724012418330,2.14561288,59856.0,59855.0,0.0029075]
[1724012418510,2.09549808,59856.0,59855.0,0.0029075]
[1724012418865,2.14561288,59856.0,59855.0,0.00284376]
[1724012420068,2.09549808,59856.0,59855.0,0.00284376]
[1724012420511,2.14561288,59856.0,59855.0,0.00284376]
[1724012420716,2.14565511,59856.0,59855.0,0.00284376]
[1724012423748,2.09549808,59856.0,59855.0,0.00284376]
[1724012423920,2.17073363,59856.0,59855.0,0.00284376]
[1724012424267,2.09549808,59856.0,59855.0,0.00284376]
[1724012424467,2.09649808,59856.0,59855.0,0.00284376]
[1724012424720,2.09549808,59856.0,59855.0,0.00284376]
[1724012425161,2.19581214,59856.0,59855.0,0.00284376]
[1724012425287,2.19681214,59856.0,59855.0,0.00284376]
[1724012425494,2.19581214,59856.0,59855.0,0.00284376]
[1724012426105,2.19681214,59856.0,59855.0,0.00284376]
[1724012426320,2.19581214,59856.0,59855.0,0.00284376]
[1724012426638,2.19681214,59856.0,59855.0,0.00284376]
[1724012427066,2.19581214,59856.0,59855.0,0.00284376]
[1724012428374,2.19681214,59856.0,59855.0,0.00284376]
[1724012429195,2.12101214,59856.0,59855.0,0.00284376]
[1724012429680,2.12001214,59856.0,59855.0,0.00284376]
[1724012430087,2.01969808,59856.0,59855.0,0.00284376]
[1724012430570,2.33099208,59856.0,59855.0,0.00284376]
[1724012430783,2.33099208,59856.0,59843.0,0.0009075]
[1724012430784,1.070593,59844.0,59843.0,0.0009075]
[1724012430989,1.99111737,59844.0,59843.0,0.0009075]
[1724012431359,2.14422584,59844.0,59843.0,0.0009075]
[1724012431539,2.16514643,59844.0,59843.0,0.0009075]
[1724012431743,2.16514643,59844.0,59836.0,0.0009075]
[1724012431744,1.285856,59837.0,59836.0,0.0009075]
[1724012431946,2.06741477,59837.0,59836.0,0.0009075]
[1724012432144,2.19287021,59837.0,59836.0,0.0009075]
[1724012432349,2.29394386,59837.0,59836.0,0.0009075]
[1724012432775,2.29294386,59837.0,59836.0,0.0009075]
[1724012432989,2.19269481,59837.0,59836.0,0.0009075]
[1724012433336,2.26887489,59837.0,59836.0,0.0009075]
[1724012433560,2.24378691,59837.0,59836.0,0.0009075]
[1724012433780,2.19347489,59837.0,59836.0,0.0009075]
[1724012433983,2.16556249,59837.0,59836.0,0.00050212]
[1724012434173,2.17956249,59837.0,59836.0,0.00050212]
[1724012434378,2.18238709,59837.0,59836.0,0.00050212]
[1724012434683,2.14250409,59837.0,59836.0,0.00050212]
[1724012435078,2.15650409,59837.0,59836.0,0.00050212]
[1724012435279,2.15367949,59837.0,59836.0,0.00050212]
[1724012438351,2.08989731,59837.0,59836.0,0.00050212]
[1724012439406,2.02469731,59837.0,59836.0,0.00050212]
[1724012439588,1.94349731,59837.0,59836.0,0.00050212]
[1724012440182,2.02469731,59837.0,59836.0,0.00050212]
[1724012440541,2.02469731,59837.0,59836.0,0.14240212]
[1724012440542,1.94249731,59837.0,59836.0,0.14240212]
[1724012440777,2.02369731,59837.0,59836.0,0.14240212]
[1724012441327,1.82369731,59837.0,59836.0,0.14240212]
[1724012442229,1.49832003,59837.0,59836.0,0.14240212]
[1724012442436,1.57952003,59837.0,59836.0,0.14240212]
[1724012444788,1.57952003,59837.0,59836.0,0.07880212]
[1724012446673,2.00580296,59837.0,59836.0,0.00050212]
[1724012446833,2.00680296,59837.0,59836.0,0.00050212]
[1724012447035,1.77952003,59837.0,59836.0,0.00050212]
[1724012447280,1.77952003,59837.0,59836.0,0.07880212]
[1724012447831,2.01348803,59837.0,59836.0,0.07880212]
[1724012448046,1.77952003,59837.0,59836.0,0.07880212]
[1724012448646,2.01348803,59837.0,59836.0,0.07880212]
[1724012448855,1.77952003,59837.0,59836.0,0.07880212]
[1724012449459,2.01348803,59837.0,59836.0,0.07880212]
[1724012449960,1.77952003,59837.0,59836.0,0.07880212]
[1724012450432,2.01348803,59837.0,59836.0,0.07880212]
[1724012450634,1.57952003,59837.0,59836.0,0.07880212]
[1724012451671,1.06090003,59837.0,59831.0,0.14216431]
[1724012451895,0.900158,59832.0,59831.0,0.14216431]
[1724012452130,1.51913459,59832.0,59831.0,0.14216431]
[1724012452382,1.52131681,59832.0,59831.0,0.14216431]
[1724012452605,1.44011681,59832.0,59831.0,0.14216431]
[1724012454627,1.44911681,59832.0,59831.0,0.14216431]
[1724012454908,1.44911681,59832.0,59831.0,0.07856431]
[1724012454909,1.45911681,59832.0,59831.0,0.07856431]
[1724012456536,1.45911681,59832.0,59831.0,0.14216431]
[1724012456921,1.45911681,59832.0,59831.0,0.07856431]
[1724012458909,1.46908089,59832.0,59831.0,0.07856431]
[1724012460808,1.45911681,59832.0,59831.0,0.07856431]
[1724012468513,1.52175045,59832.0,59831.0,0.07856431]
[1724012468921,1.58745045,59832.0,59831.0,0.00026431]
[1724012469190,1.82143845,59832.0,59831.0,0.00026431]
[1724012473768,1.90243845,59832.0,59831.0,0.00026431]
[1724012476248,1.95261711,59832.0,59831.0,0.00026431]
[1724012476600,1.90243845,59832.0,59831.0,0.00026431]
[1724012479403,1.82143845,59832.0,59831.0,0.00026431]
[1724012481288,1.75573845,59832.0,59831.0,0.00026431]
[1724012484664,1.75573845,59832.0,59831.0,0.08306431]
[1724012484665,1.52175045,59832.0,59831.0,0.08306431]
[1724012484862,1.52175045,59832.0,59831.0,0.14926431]
[1724012486430,1.45911681,59832.0,59831.0,0.14926431]
[1724012489450,1.52175192,59832.0,59831.0,0.14926431]
[1724012489653,1.45911681,59832.0,59831.0,0.14926431]
[1724012491071,1.52175096,59832.0,59831.0,0.14926431]
[1724012491240,1.45911681,59832.0,59831.0,0.14926431]
[1724012497162,1.45911681,59832.0,59831.0,0.1488581]
[1724012507305,1.45911681,59832.0,59831.0,0.0826581]
[1724012507676,1.45911681,59832.0,59830.0,0.0009075]
[1724012507677,1.320364,59831.0,59830.0,0.0009075]
[1724012507887,2.10959428,59831.0,59830.0,0.0009075]
[1724012508140,2.11159428,59831.0,59830.0,0.0009075]
[1724012508363,2.11241888,59831.0,59830.0,0.0009075]
[1724012508521,2.17514054,59831.0,59830.0,0.0009075]
[1724012508722,2.17414054,59831.0,59830.0,0.0009075]
[1724012508920,2.40913254,59831.0,59830.0,0.0009075]
[1724012509127,2.17514054,59831.0,59830.0,0.0009075]
[1724012509303,2.18314054,59831.0,59830.0,0.0009075]
[1724012509502,2.41713254,59831.0,59830.0,0.0009075]
[1724012509826,2.40913254,59831.0,59830.0,0.0009075]
[1724012510234,2.41930794,59831.0,59830.0,0.0009075]
[1724012510410,2.42130794,59831.0,59830.0,0.0009075]
[1724012511362,2.43530794,59831.0,59830.0,0.0009075]
[1724012511587,2.43713254,59831.0,59830.0,0.0009075]
[1724012512117,2.43613254,59831.0,59830.0,0.0009075]
[1724012512321,2.43530794,59831.0,59830.0,0.0009075]
[1724012512495,2.42130794,59831.0,59830.0,0.0009075]
[1724012512668,2.42313254,59831.0,59830.0,0.0009075]
[1724012512875,2.43713254,59831.0,59830.0,0.0009075]
[1724012513500,2.34681852,59831.0,59830.0,0.0009075]
[1724012514905,2.58081052,59831.0,59830.0,0.0009075]
[1724012515987,2.58081352,59831.0,59830.0,0.0009075]
[1724012516687,2.45561088,59831.0,59830.0,0.0009075]
[1724012517594,2.55575275,59831.0,59830.0,0.0009075]
[1724012517943,2.55575075,59831.0,59830.0,0.00051389]
[1724012518495,2.55574084,59831.0,59830.0,0.00051389]
[1724012520604,2.55572341,59831.0,59830.0,0.00051389]
[1724012522515,2.45561088,59831.0,59830.0,0.00051389]
[1724012523060,2.62716542,59831.0,59830.0,0.00051389]
[1724012523260,2.72724847,59831.0,59830.0,0.00051389]
[1724012523593,2.55569393,59831.0,59830.0,0.00051389]
[1724012524784,2.45561088,59831.0,59830.0,0.00051389]
[1724012526716,2.13759428,59831.0,59830.0,0.00051389]
[1724012526913,2.21879428,59831.0,59830.0,0.00051389]
[1724012527363,2.22079428,59831.0,59830.0,0.00051389]
[1724012528208,2.22161888,59831.0,59830.0,0.00051389]
[1724012530046,2.27164992,59831.0,59830.0,0.00051389]
[1724012531280,2.22161888,59831.0,59830.0,0.00051389]
[1724012531487,2.22244388,59831.0,59830.0,0.00051389]
[1724012531897,2.22144388,59831.0,59830.0,0.00051389]
[1724012532434,2.22061928,59831.0,59830.0,0.00051389]
[1724012532634,2.22244388,59831.0,59830.0,0.00051389]
[1724012532906,2.22061928,59831.0,59830.0,0.00051389]
[1724012533177,2.22244388,59831.0,59830.0,0.00051389]
[1724012535216,2.39399842,59831.0,59830.0,0.00051389]
[1724012535465,2.4690443,59831.0,59830.0,0.00051389]
[1724012539909,2.39399842,59831.0,59830.0,0.00051389]
[1724012540053,2.4690443,59831.0,59830.0,0.00051389]
[1724012541110,2.29748976,59831.0,59830.0,0.00051389]
[1724012543478,2.22244388,59831.0,59830.0,0.00051389]
[1724012544964,2.14684388,59831.0,59830.0,0.00051389]
[1724012545404,2.24692079,59831.0,59830.0,0.00051389]
[1724012547489,2.27194002,59831.0,59830.0,0.00051389]
[1724012547689,2.14684388,59831.0,59830.0,0.00051389]
[1724012547903,2.31739842,59831.0,59830.0,0.00051389]
[1724012548112,2.31839842,59831.0,59830.0,0.00051389]
[1724012548495,2.44349456,59831.0,59830.0,0.00051389]
[1724012548694,2.67748656,59831.0,59830.0,0.00051389]
[1724012548895,2.75126196,59831.0,59830.0,0.00051389]
[1724012549488,2.62616582,59831.0,59830.0,0.00051389]
[1724012550286,2.62699042,59831.0,59830.0,0.00051389]
[1724012550719,2.62799042,59831.0,59830.0,0.00051389]
[1724012551894,2.55239042,59831.0,59830.0,0.00051389]
[1724012552103,2.38083588,59831.0,59830.0,0.00051389]
[1724012553278,2.37801128,59831.0,59830.0,0.00051389]
[1724012553485,2.38083588,59831.0,59830.0,0.00051389]
[1724012559731,2.45593588,59831.0,59830.0,0.00051389]
[1724012560501,2.62749042,59831.0,59830.0,0.00051389]
[1724012560959,1.99641928,59831.0,59830.0,0.07861389]
[1724012561160,2.07761928,59831.0,59830.0,0.07861389]
[1724012564399,2.07961928,59831.0,59830.0,0.07861389]
[1724012565087,2.07761928,59831.0,59830.0,0.07861389]
[1724012565476,2.24917382,59831.0,59830.0,0.07861389]
[1724012565850,2.07761928,59831.0,59830.0,0.07861389]
[1724012566086,2.07961928,59831.0,59830.0,0.07861389]
[1724012566283,2.07761928,59831.0,59830.0,0.07861389]
[1724012567684,2.31361128,59831.0,59830.0,0.07861389]
[1724012567885,2.07961928,59831.0,59830.0,0.07861389]
[1724012568061,2.07761928,59831.0,59830.0,0.07861389]
[1724012568735,2.23019509,59831.0,59830.0,0.07861389]
[1724012568938,2.07961928,59831.0,59830.0,0.07861389]
[1724012569354,2.31361128,59831.0,59830.0,0.07861389]
[1724012569547,2.07961928,59831.0,59830.0,0.07861389]
[1724012570338,2.23019509,59831.0,59830.0,0.07861389]
[1724012570682,2.07761928,59831.0,59830.0,0.07861389]
[1724012572126,1.50842728,59831.0,59830.0,0.14281389]
[1724012572389,1.48161881,59831.0,59830.0,0.14281389]
[1724012572656,1.40636051,59831.0,59830.0,0.14281389]
[1724012572876,1.48756051,59831.0,59830.0,0.14281389]
[1724012573070,1.47356051,59831.0,59830.0,0.14281389]
[1724012573291,1.48756051,59831.0,59830.0,0.14281389]
[1724012573497,1.61056051,59831.0,59830.0,0.14281389]
[1724012573657,1.59656051,59831.0,59830.0,0.14281389]
[1724012573855,1.58256051,59831.0,59830.0,0.14281389]
[1724012574031,1.60056051,59831.0,59830.0,0.14281389]
[1724012574649,1.58656051,59831.0,59830.0,0.14281389]
[1724012574919,0.66938851,59831.0,59830.0,0.15709528]
[1724012575112,0.61779759,59831.0,59830.0,0.14281389]
[1724012575357,1.08578159,59831.0,59830.0,0.14281389]
[1724012575558,1.08178159,59831.0,59830.0,0.14281389]
[1724012575890,1.09478159,59831.0,59830.0,0.14281389]
[1724012576288,1.11078159,59831.0,59830.0,0.14281389]
[1724012576776,1.11578159,59831.0,59830.0,0.14281389]
[1724012576984,0.50780159,59831.0,59830.0,0.25981189]
[1724012577183,0.49680159,59831.0,59830.0,0.14398929]
[1724012577542,0.50180159,59831.0,59830.0,0.14398929]
[1724012577749,0.49780159,59831.0,59830.0,0.14398929]
[1724012577967,0.49780159,59831.0,59830.0,0.77847902]
[1724012578184,0.49780159,59831.0,59830.0,0.74945854]
[1724012578432,0.49780159,59831.0,59830.0,0.98345454]
[1724012578433,0.34790159,59831.0,59830.0,0.98345454]
[1724012578582,0.34790159,59831.0,59830.0,0.98445454]
[1724012578781,0.28030159,59831.0,59830.0,1.09553555]
[1724012579362,0.28030159,59831.0,59830.0,1.09653555]
[1724012579363,0.28130159,59831.0,59830.0,1.09653555]
[1724012579567,0.13790159,59831.0,59830.0,1.03333555]
[1724012579781,0.13790159,59831.0,59830.0,1.03233555]
[1724012580192,0.13890159,59831.0,59830.0,1.03233555]
[1724012581584,0.05560159,59831.0,59830.0,1.26733155]
[1724012581795,0.05560159,59831.0,59830.0,1.11353555]
[1724012581977,0.05560159,59831.0,59830.0,1.11353348]
[1724012582973,0.000825,59836.0,59835.0,0.8210914]
[1724012583176,0.000825,59836.0,59835.0,1.01557391]
[1724012583383,0.000825,59836.0,59835.0,1.01357391]
[1724012584461,0.000825,59836.0,59835.0,1.41892905]
[1724012584462,0.001825,59836.0,59835.0,1.41892905]
[1724012584660,0.001825,59836.0,59835.0,1.25254991]
[1724012585288,0.002825,59836.0,59835.0,1.25254991]
[1724012585702,0.000825,59836.0,59835.0,1.25154991]
[1724012585903,0.000825,59843.0,59842.0,0.8209964]
[1724012586266,0.000825,59843.0,59842.0,0.9021964]
[1724012586475,0.000825,59843.0,59842.0,0.900021]
[1724012586678,0.000825,59843.0,59842.0,0.9011964]
[1724012586880,0.000825,59843.0,59842.0,0.7020474]
[1724012587053,0.000825,59843.0,59842.0,0.79457304]
[1724012587290,0.000825,59843.0,59842.0,0.79574844]
[1724012587498,0.000825,59843.0,59842.0,0.79457304]
[1724012587695,0.000825,59843.0,59842.0,1.03069744]
[1724012588104,0.001825,59843.0,59842.0,1.04469744]
[1724012589246,0.002825,59843.0,59842.0,1.04469744]
[1724012591405,0.002825,59843.0,59842.0,1.04352204]
[1724012591622,0.002825,59843.0,59842.0,1.04469744]
[1724012592865,0.002825,59843.0,59842.0,1.45220098]
[1724012593066,0.002825,59843.0,59842.0,1.47266684]
[1724012594096,0.002825,59843.0,59842.0,1.57266684]
[1724012594097,1e-08,59843.0,59842.0,1.57266684]
[1724012594253,1e-08,59843.0,59842.0,1.61908036]
[1724012594461,1e-08,59843.0,59842.0,1.62108036]
[1724012594855,1e-08,59853.0,59852.0,0.8556604]